fUST/lending_fUST_20240621
["ID","MTS","AMOUNT","RATE_DAILY","PERIOD"]
[330015701,1718937043763,-500.0,0.00054876,120]
[330015704,1718937043774,-152.177565,0.00054876,120]
[330015706,1718937043786,-500.0,0.00054876,120]
[330015707,1718937043796,-635.28,0.00054876,120]
[330015709,1718937043806,-1960.42,0.00054876,120]
[330015711,1718937043816,-2888.14,0.00054876,120]
[330015713,1718937043826,-1766.2,0.00054876,120]
[330015715,1718937043836,-500.0,0.00054876,120]
[330015717,1718937043846,-500.0,0.00054876,120]
[330015719,1718937043856,-7371.2,0.00054876,120]
[330015721,1718937043865,-500.0,0.00054876,120]
[330015723,1718937043875,-958.63,0.00054876,120]
[330015725,1718937043886,-709.98,0.00054876,120]
[330015727,1718937043896,-3449.38,0.00054876,120]
[330015729,1718937043908,-500.0,0.00054876,120]
[330015731,1718937043917,-19256.08,0.00054876,120]
[330015733,1718937043927,-561.79,0.00054876,120]
[330015735,1718937043937,-500.0,0.00054876,120]
[330015737,1718937043947,-500.0,0.00054876,120]
[330015739,1718937043957,-421.982014,0.00054876,120]
[330015741,1718937043967,-421.982014,0.00054876,120]
[330015743,1718937043978,-901.03,0.00054876,120]
[330015745,1718937043992,-421.982014,0.00054876,120]
[330015747,1718937044003,-421.982014,0.00054876,120]
[330015748,1718937044013,-1771.45,0.00054876,120]
[330015750,1718937044024,-500.0,0.00054876,120]
[330015752,1718937044035,-500.0,0.00054876,120]
[330015754,1718937044045,-500.0,0.00054876,120]
[330015756,1718937044055,-151.0,0.00054876,120]
[330015758,1718937044066,-251.975142,0.00054876,120]
[330015761,1718937044076,-500.0,0.00054876,120]
[330015763,1718937044086,-500.0,0.00054876,60]
[330015765,1718937044096,-51903.24,0.00054876,120]
[330015767,1718937044106,-636.42,0.00054876,120]
[330015768,1718937044116,-8114.57,0.00054876,120]
[330015770,1718937044125,-613.3,0.00054876,120]
[330015772,1718937044135,-503.94300691,0.00054876,120]
[330015774,1718937044144,-503.86218385,0.00054876,120]
[330015776,1718937044154,-565.63,0.00054876,120]
[330015778,1718937044163,-1173.34,0.00054876,120]
[330015780,1718937044174,-357.976287,0.00054876,120]
[330015782,1718937044183,-536.56,0.00054876,120]
[330015785,1718937044193,-357.976287,0.00054876,120]
[330015787,1718937044203,-409.30195055,0.00054876,120]
[330015789,1718937044212,-4994.66,0.00054876,21]
[330015791,1718937044221,-1126.27,0.00054876,120]
[330015794,1718937044231,-1318.51,0.00054876,120]
[330015797,1718937044245,-576.03,0.00054876,120]
[330015800,1718937044256,-357.976287,0.00054876,120]
[330015803,1718937044265,-357.976287,0.00054876,120]
[330015815,1718937044355,-74.4662337,0.00054876,90]
[330015831,1718937044508,-425.5337663,0.00054876,90]
[330015833,1718937044518,-500.0,0.00054876,120]
[330015835,1718937044528,-253.24723946,0.00054876,120]
[330015935,1718937045675,-246.75276054,0.00054876,120]
[330015938,1718937045684,-1243.18,0.00054876,120]
[330015940,1718937045694,-1734.21,0.00054876,120]
[330015942,1718937045703,-2036.18677033,0.00054876,120]
[330015944,1718937045715,-7313.79322967,0.00054876,120]
[330015946,1718937045724,-500.0,0.00054876,120]
[330015948,1718937045733,-1930.24,0.00054876,120]
[330015950,1718937045744,-688.88,0.00054876,120]
[330015952,1718937045754,-500.0,0.00054876,120]
[330015954,1718937045763,-500.0,0.00054876,120]
[330015956,1718937045772,-838.38,0.00054876,120]
[330015958,1718937045781,-728.89,0.00054876,120]
[330015959,1718937045791,-151.0,0.00054876,120]
[330015961,1718937045800,-151.0,0.00054876,120]
[330015963,1718937045809,-151.0,0.00054876,120]
[330015965,1718937045818,-151.0,0.00054876,120]
[330015967,1718937045827,-517.58067253,0.00054876,120]
[330016292,1718937054437,250.0,0.00037326,2]
[330016293,1718937083134,222.9566403,0.00039859,2]
[330016294,1718937096224,4870.95390325,0.00025204,2]
[330016295,1718937096248,6355.60603882,0.00025204,2]
[330016296,1718937096281,6332.96080662,0.00025204,2]
[330016297,1718937096302,168.06825057,0.00025204,2]
[330016298,1718937096322,1930.02287567,0.00025204,2]
[330016299,1718937096343,170.9115572,0.00025204,2]
[330016332,1718938016272,-185.3363719,0.00021096,2]
[330016333,1718938016293,-7.48948267,0.00025104,2]
[330016334,1718938051132,-1680.63156337,0.00025104,2]
[330016335,1718938147143,-275.33249286,0.00023004,2]
[330016336,1718938147163,-163.499352,0.00027754,2]
[330016337,1718938147183,-1638.26398363,0.0002799,2]
[330016338,1718938147203,-275.33249286,0.00028004,2]
[330016339,1718938147223,-311.6465988,0.00028104,2]
[330016340,1718938147244,-851.45990159,0.00028999,2]
[330016341,1718938147264,-276.01878985,0.00029655,2]
[330016342,1718938147284,-153.82992579,0.0003,7]
[330016343,1718938147305,-155.83004725,0.00030025,4]
[330016344,1718938147326,-300.0,0.00030417,2]
[330016345,1718938147346,-290.0,0.00030417,2]
[330016346,1718938147366,-1750.26240009,0.00030429,4]
[330016347,1718938147386,-757.42491528,0.00031232,2]
[330016349,1718938154121,-24132.57508472,0.00031232,2]
[330016350,1718938154144,-183.49818844,0.0003201,2]
[330016351,1718938154269,-169.3014,0.0003211,2]
[330016352,1718938157112,-275.33249286,0.00033004,2]
[330016353,1718938157136,-822.567184,0.00047,10]
[330016354,1718938189848,2285.14617077,0.00030298,2]
[330016381,1718938239836,-808.92881548,0.00030398,2]
[330016384,1718938239849,-1639.8941848,0.00030398,2]
[330016386,1718938239859,-615.88173613,0.0005,4]
[330016387,1718938239870,-190.50091096,0.00051771,2]
[330016388,1718938239879,-500.0,0.00054068,120]
[330016389,1718938239890,-508.57,0.00054068,120]
[330016390,1718938239900,-6166.99,0.00054095,120]
[330016391,1718938239910,-2080.72101845,0.00054096,60]
[330016392,1718938239919,-152.0,0.00054272,90]
[330016393,1718938239929,-2752.732,0.000543,120]
[330016394,1718938239940,-150.0,0.000544,98]
[330016395,1718938239950,-183.49818844,0.00054462,2]
[330016396,1718938239963,-5531.35488038,0.00054478,2]
[330016397,1718938239974,-1803.34510376,0.00054499,40]
[330016398,1718938239985,-27581.52151332,0.000545,30]
[330016399,1718938239996,-152.0,0.00054555,90]
[330016400,1718938240006,-30000.0,0.000546,30]
[330016401,1718938240016,-253.8013263,0.00054689,4]
[330016402,1718938240027,-17141.25,0.0005469,3]
[330016403,1718938240037,-193.95427205,0.000547,120]
[330016404,1718938240047,-30000.0,0.000547,30]
[330016405,1718938240057,-6166.99,0.00054788,120]
[330016406,1718938240067,-746.78,0.00054792,120]
[330016407,1718938240076,-6166.99,0.00054792,120]
[330016408,1718938240086,-6166.99,0.00054793,120]
[330016409,1718938240095,-6166.99,0.00054793,120]
[330016410,1718938240105,-6166.99,0.00054793,120]
[330016411,1718938240115,-6166.99,0.00054793,120]
[330016412,1718938240124,-6166.99,0.00054793,120]
[330016413,1718938240134,-500.0,0.00054794,120]
[330016414,1718938240143,-500.0,0.00054794,120]
[330016415,1718938240153,-500.0,0.00054794,120]
[330016416,1718938240163,-500.0,0.00054794,120]
[330016417,1718938240172,-500.0,0.00054794,120]
[330016418,1718938240181,-500.0,0.00054794,120]
[330016419,1718938240190,-506.44261552,0.00054794,120]
[330016420,1718938240199,-500.0,0.00054794,120]
[330016421,1718938240211,-500.0,0.00054794,120]
[330016422,1718938240220,-500.0,0.00054794,120]
[330016423,1718938240229,-591.93,0.00054794,120]
[330016424,1718938240239,-500.0,0.00054794,120]
[330016425,1718938240248,-807.67,0.00054794,120]
[330016426,1718938240257,-500.0,0.00054794,120]
[330016427,1718938240266,-500.0,0.00054794,120]
[330016428,1718938240276,-500.0,0.00054794,120]
[330016429,1718938240285,-500.0,0.00054794,120]
[330016430,1718938240294,-2096.15,0.00054794,120]
[330016431,1718938240303,-500.0,0.00054794,120]
[330016432,1718938240313,-500.0,0.00054794,120]
[330016433,1718938240322,-500.0,0.00054794,120]
[330016434,1718938240332,-1764.91,0.00054794,120]
[330016435,1718938240340,-500.0,0.00054794,120]
[330016436,1718938240350,-500.0,0.00054794,120]
[330016437,1718938240359,-500.0,0.00054794,120]
[330016438,1718938240369,-500.0,0.00054794,120]
[330016439,1718938240378,-500.0,0.00054794,120]
[330016440,1718938240388,-500.0,0.00054794,120]
[330016441,1718938240396,-503.94300691,0.00054794,120]
[330016442,1718938240500,-294.55061259,0.00054794,120]
[330016443,1718938240509,-500.0,0.00054794,120]
[330016444,1718938240519,-500.0,0.00054794,120]
[330016445,1718938240528,-500.0,0.00054794,120]
[330016446,1718938240537,-409.30195055,0.00054794,120]
[330016447,1718938240546,-647.41,0.00054794,120]
[330016448,1718938240555,-500.0,0.00054794,120]
[330016449,1718938240565,-500.0,0.00054794,120]
[330016450,1718938240574,-500.0,0.00054794,120]
[330016451,1718938240583,-421.52891483,0.00054794,120]
[330016452,1718938240592,-760.34,0.00054794,120]
[330016453,1718938240601,-500.0,0.00054794,120]
[330016454,1718938240610,-2378.49,0.00054794,120]
[330016455,1718938240619,-2824.71,0.00054794,120]
[330016456,1718938240634,-1453.39,0.00054794,120]
[330016457,1718938240643,-906.78,0.00054794,120]
[330016458,1718938240652,-500.0,0.00054794,120]
[330016459,1718938240662,-1956.12,0.00054794,120]
[330016460,1718938240671,-500.0,0.00054794,120]
[330016461,1718938240681,-540.04,0.00054794,7]
[330016462,1718938240691,-500.0,0.00054794,120]
[330016463,1718938240700,-500.0,0.00054794,120]
[330016465,1718938240714,-500.0,0.00054794,2]
[330016467,1718938240723,-893.42,0.00054794,120]
[330016469,1718938240732,-500.0,0.00054794,120]
[330016471,1718938240741,-500.0,0.00054794,120]
[330016474,1718938240750,-500.0,0.00054794,120]
[330016476,1718938240760,-500.0,0.00054794,120]
[330016477,1718938240770,-500.0,0.00054794,120]
[330016478,1718938240779,-500.0,0.00054794,120]
[330016479,1718938240788,-500.0,0.00054794,120]
[330016480,1718938240798,-301.07703121,0.00054794,120]
[330016481,1718938240807,-500.0,0.00054794,120]
[330016482,1718938240817,-500.0,0.00054794,120]
[330016483,1718938240826,-500.0,0.00054794,120]
[330016484,1718938240836,-608.81,0.00054794,120]
[330016485,1718938240845,-500.0,0.00054794,120]
[330016486,1718938240855,-500.0,0.00054794,120]
[330016487,1718938240865,-500.0,0.00054794,120]
[330016488,1718938240874,-1750.88,0.00054794,120]
[330016489,1718938240883,-1942.91,0.00054794,120]
[330016490,1718938240892,-708.01,0.00054794,120]
[330016491,1718938240902,-1203.0,0.00054794,120]
[330016492,1718938240912,-680.4,0.00054794,120]
[330016493,1718938240921,-1571.92,0.00054794,120]
[330016494,1718938240931,-500.0,0.00054794,120]
[330016495,1718938240940,-500.0,0.00054794,120]
[330016496,1718938240950,-500.0,0.00054794,60]
[330016497,1718938240959,-1005.84,0.00054794,120]
[330016498,1718938240969,-500.0,0.00054794,120]
[330016499,1718938240978,-503.86218385,0.00054794,120]
[330016500,1718938240987,-500.0,0.00054794,120]
[330016501,1718938240995,-1697.64,0.00054794,120]
[330016502,1718938241005,-500.0,0.00054794,120]
[330016504,1718938241014,-863.48,0.00054794,120]
[330016506,1718938241023,-500.0,0.00054794,120]
[330016508,1718938241032,-500.0,0.00054794,120]
[330016510,1718938241041,-500.0,0.00054794,120]
[330016512,1718938241050,-49740.61,0.00054794,120]
[330016514,1718938241060,-500.0,0.00054794,120]
[330016516,1718938241069,-500.0,0.00054794,120]
[330016517,1718938241078,-500.0,0.00054794,120]
[330016518,1718938241087,-542.06,0.00054794,120]
[330016519,1718938241096,-4786.55,0.00054794,21]
[330016520,1718938241105,-500.0,0.00054794,120]
[330016521,1718938241115,-500.0,0.00054794,120]
[330016522,1718938241124,-561.79,0.00054794,120]
[330016523,1718938241133,-514.21,0.00054794,120]
[330016524,1718938241144,-1263.57,0.00054794,120]
[330016525,1718938241153,-1319.55,0.00054794,120]
[330016526,1718938241162,-8570.82,0.00054794,120]
[330016527,1718938241171,-1000.0,0.00054794,14]
[330016528,1718938241180,-703.34,0.00054794,120]
[330016529,1718938241189,-609.9,0.00054794,120]
[330016530,1718938241199,-500.0,0.00054794,120]
[330016531,1718938241208,-500.0,0.00054794,120]
[330016532,1718938241217,-587.74,0.00054794,120]
[330016533,1718938241227,-500.0,0.00054794,120]
[330016534,1718938241236,-1644.64,0.00054794,120]
[330016535,1718938241245,-22023.07,0.00054794,120]
[330016536,1718938241254,-500.0,0.00054794,120]
[330016537,1718938241264,-660.17,0.00054794,120]
[330016538,1718938241273,-500.0,0.00054794,120]
[330016539,1718938241282,-7776.46,0.00054794,120]
[330016540,1718938241292,-629.72,0.00054794,120]
[330016541,1718938241301,-1079.34,0.00054794,120]
[330016542,1718938241311,-907.57,0.00054794,120]
[330016543,1718938241320,-1981.9,0.00054794,120]
[330016544,1718938241329,-551.71,0.00054794,120]
[330016545,1718938241339,-552.03,0.00054794,120]
[330016546,1718938241348,-511.89382872,0.00054794,120]
[330016547,1718938241358,-2436.85,0.00054794,120]
[330016548,1718938241367,-500.0,0.00054794,120]
[330016549,1718938241376,-2776.09,0.00054794,120]
[330016550,1718938241385,-500.0,0.00054794,90]
[330016551,1718938241394,-2073.4,0.00054794,120]
[330016552,1718938241403,-500.0,0.00054794,120]
[330016553,1718938241412,-500.0,0.00054794,120]
[330016554,1718938241422,-1194.57,0.00054794,120]
[330016555,1718938241431,-500.0,0.00054794,120]
[330016556,1718938241440,-500.0,0.00054794,120]
[330016557,1718938241450,-500.0,0.00054794,120]
[330016558,1718938241459,-500.0,0.00054794,2]
[330016559,1718938241468,-1235.45,0.00054794,120]
[330016560,1718938241477,-1920.21,0.00054794,120]
[330016561,1718938241487,-500.0,0.00054794,120]
[330016562,1718938241496,-9232.81,0.00054794,120]
[330016563,1718938241506,-500.0,0.00054794,120]
[330016564,1718938241515,-2823.26,0.00054794,120]
[330016565,1718938241524,-1960.49,0.00054794,120]
[330016566,1718938241533,-26050.72,0.00054794,120]
[330016567,1718938241542,-734.57,0.00054794,120]
[330016568,1718938241551,-188.37814953,0.00054794,120]
[330016569,1718938241561,-500.0,0.00054794,120]
[330016570,1718938241570,-698.52,0.00054794,120]
[330016571,1718938241579,-500.0,0.00054794,120]
[330016572,1718938241588,-622.76,0.00054794,120]
[330016573,1718938241598,-528.50643337,0.00054794,120]
[330016574,1718938241608,-500.0,0.00054794,120]
[330016575,1718938241618,-3355.62,0.00054794,120]
[330016576,1718938241628,-663.24,0.00054794,120]
[330016577,1718938241641,-1157.91,0.00054794,120]
[330016578,1718938241651,-500.0,0.00054794,120]
[330016579,1718938241660,-1460.46,0.00054794,120]
[330016580,1718938241670,-682.84,0.00054794,120]
[330016581,1718938241679,-250.0,0.00054794,120]
[330016582,1718938241688,-500.0,0.00054794,120]
[330016583,1718938241698,-5507.75,0.00054794,120]
[330016584,1718938241709,-1786.6,0.00054794,120]
[330016585,1718938241720,-531.8,0.00054794,120]
[330016586,1718938241729,-547.96,0.00054794,120]
[330016587,1718938241738,-500.0,0.00054794,120]
[330016588,1718938241749,-508.77880017,0.00054794,120]
[330016589,1718938241758,-500.0,0.00054794,120]
[330016590,1718938241767,-500.0,0.00054794,120]
[330016591,1718938241777,-500.0,0.00054794,120]
[330016592,1718938241786,-500.0,0.00054794,120]
[330016593,1718938241795,-507.39519876,0.00054794,120]
[330016594,1718938241805,-1587.48,0.00054794,120]
[330016595,1718938241815,-500.0,0.00054794,120]
[330016596,1718938241826,-520.84,0.00054794,120]
[330016597,1718938241835,-681.23,0.00054794,120]
[330016598,1718938241844,-1932.05,0.00054794,120]
[330016599,1718938241854,-535.28090366,0.00054794,120]
[330016600,1718938241863,-498.25541486,0.00054794,120]
[330016601,1718938241873,-500.0,0.00054794,120]
[330016602,1718938241883,-500.0,0.00054794,120]
[330016603,1718938241892,-500.0,0.00054794,30]
[330016604,1718938241901,-2323.91,0.00054794,120]
[330016605,1718938241911,-2323.91,0.00054794,120]
[330016606,1718938241920,-2323.91,0.00054794,120]
[330016607,1718938241929,-500.0,0.00054794,120]
[330016608,1718938241939,-2323.91,0.00054794,120]
[330016609,1718938241949,-2323.91,0.00054794,120]
[330016610,1718938241959,-7064.06,0.00054794,120]
[330016611,1718938241968,-2323.91,0.00054794,120]
[330016612,1718938241978,-2323.91,0.00054794,120]
[330016613,1718938241988,-2323.91,0.00054794,120]
[330016614,1718938241998,-2323.91,0.00054794,120]
[330016615,1718938242008,-2323.91,0.00054794,120]
[330016616,1718938242019,-2323.91,0.00054794,120]
[330016617,1718938242028,-244.83329614,0.00054794,120]
[330016618,1718938242037,-18508.2,0.00054794,120]
[330016619,1718938242048,-2767.8,0.00054794,120]
[330016620,1718938242057,-500.0,0.00054794,120]
[330016621,1718938242066,-997.41,0.00054794,120]
[330016622,1718938242075,-500.0,0.00054794,120]
[330016623,1718938242085,-2267.77,0.00054794,5]
[330016624,1718938242094,-500.0,0.00054794,120]
[330016625,1718938242103,-4620.62,0.00054794,120]
[330016626,1718938242113,-751.63,0.00054794,120]
[330016627,1718938242122,-3331.15,0.00054794,120]
[330016628,1718938242132,-500.0,0.00054794,120]
[330016629,1718938242141,-2323.91,0.00054874,120]
[330016630,1718938242150,-2323.91,0.00054874,120]
[330016631,1718938242161,-6166.99,0.00054875,120]
[330016632,1718938242169,-6166.99,0.00054875,120]
[330016633,1718938242179,-6166.99,0.00054875,120]
[330016634,1718938242189,-6166.99,0.00054875,120]
[330016635,1718938242198,-6166.99,0.00054875,120]
[330016636,1718938242209,-2323.91,0.00054875,120]
[330016637,1718938242219,-2323.91,0.00054875,120]
[330016638,1718938242228,-2323.91,0.00054875,120]
[330016639,1718938242238,-2323.91,0.00054875,120]
[330016640,1718938242248,-2323.91,0.00054875,120]
[330016641,1718938242257,-2323.91,0.00054875,120]
[330016642,1718938242266,-2323.91,0.00054875,120]
[330016643,1718938242350,-2323.91,0.00054875,120]
[330016644,1718938242361,-2323.91,0.00054875,120]
[330016645,1718938242370,-2323.91,0.00054875,120]
[330016646,1718938242379,-2324.12916077,0.00054875,120]
[330016647,1718938242389,-500.0,0.00054876,120]
[330016648,1718938242398,-500.0,0.00054876,120]
[330016649,1718938242407,-500.0,0.00054876,120]
[330016650,1718938242416,-500.0,0.00054876,120]
[330016651,1718938242425,-500.0,0.00054876,120]
[330016652,1718938242434,-500.0,0.00054876,120]
[330016653,1718938242443,-151.0,0.00054876,120]
[330016654,1718938242451,-500.0,0.00054876,120]
[330016655,1718938242462,-500.0,0.00054876,120]
[330016656,1718938242471,-500.0,0.00054876,120]
[330016657,1718938242479,-591.93,0.00054876,120]
[330016658,1718938242488,-500.0,0.00054876,120]
[330016659,1718938242497,-807.67,0.00054876,120]
[330016660,1718938242506,-500.0,0.00054876,120]
[330016661,1718938242515,-500.0,0.00054876,120]
[330016662,1718938242524,-500.0,0.00054876,120]
[330016663,1718938242534,-557.13500279,0.00054876,120]
[330016664,1718938242543,-2096.15,0.00054876,120]
[330016665,1718938242552,-500.0,0.00054876,120]
[330016666,1718938242561,-151.0,0.00054876,120]
[330016667,1718938242570,-151.0,0.00054876,120]
[330016668,1718938242579,-151.0,0.00054876,120]
[330016669,1718938242588,-151.0,0.00054876,120]
[330016670,1718938242597,-500.0,0.00054876,120]
[330016671,1718938242606,-302.06100708,0.00054876,120]
[330016672,1718938242615,-1764.91,0.00054876,120]
[330016673,1718938242626,-151.0,0.00054876,120]
[330016674,1718938242637,-500.0,0.00054876,120]
[330016675,1718938242646,-285.151418,0.00054876,120]
[330016676,1718938242655,-500.0,0.00054876,120]
[330016677,1718938242664,-439.835934,0.00054876,120]
[330016678,1718938242675,-439.835934,0.00054876,120]
[330016679,1718938242684,-500.0,0.00054876,120]
[330016680,1718938242693,-500.0,0.00054876,120]
[330016681,1718938242702,-439.835934,0.00054876,120]
[330016682,1718938242712,-439.835934,0.00054876,120]
[330016683,1718938242723,-500.0,0.00054876,120]
[330016684,1718938242732,-500.0,0.00054876,120]
[330016685,1718938242741,-500.0,0.00054876,120]
[330016686,1718938242750,-500.0,0.00054876,120]
[330016687,1718938242759,-500.0,0.00054876,120]
[330016688,1718938242768,-294.889428,0.00054876,120]
[330016689,1718938242777,-152.995928,0.00054876,14]
[330016690,1718938242787,-647.41,0.00054876,120]
[330016691,1718938242796,-535.21382282,0.00054876,120]
[330016692,1718938242805,-500.0,0.00054876,120]
[330016693,1718938242814,-500.0,0.00054876,120]
[330016694,1718938242823,-760.34,0.00054876,120]
[330016695,1718938242832,-500.0,0.00054876,120]
[330016696,1718938242842,-2378.49,0.00054876,120]
[330016697,1718938242851,-2824.71,0.00054876,120]
[330016698,1718938242859,-151.0,0.00054876,120]
[330016699,1718938242868,-151.0,0.00054876,120]
[330016700,1718938242878,-1453.39,0.00054876,120]
[330016701,1718938242887,-906.78,0.00054876,120]
[330016702,1718938242896,-151.0,0.00054876,120]
[330016704,1718938242906,-158.065339,0.00054876,120]
[330016705,1718938242915,-500.0,0.00054876,120]
[330016706,1718938242924,-1956.12,0.00054876,120]
[330016707,1718938242933,-500.0,0.00054876,120]
[330016708,1718938242942,-540.04,0.00054876,7]
[330016709,1718938242952,-500.0,0.00054876,120]
[330016710,1718938242963,-151.0,0.00054876,120]
[330016711,1718938242972,-151.0,0.00054876,120]
[330016712,1718938242981,-606.86008456,0.00054876,120]
[330016713,1718938242989,-500.0,0.00054876,2]
[330016714,1718938243002,-893.42,0.00054876,120]
[330016715,1718938243012,-500.0,0.00054876,120]
[330016716,1718938243022,-500.0,0.00054876,120]
[330016717,1718938243032,-500.0,0.00054876,120]
[330016718,1718938243041,-500.0,0.00054876,120]
[330016719,1718938243050,-500.0,0.00054876,120]
[330016720,1718938243060,-500.0,0.00054876,120]
[330016721,1718938243070,-154.11458,0.00054876,120]
[330016722,1718938243079,-500.0,0.00054876,120]
[330016723,1718938243088,-500.0,0.00054876,120]
[330016724,1718938243098,-152.177565,0.00054876,120]
[330016725,1718938243107,-500.0,0.00054876,120]
[330016726,1718938243117,-500.0,0.00054876,120]
[330016727,1718938243126,-244.444046,0.00054876,120]
[330016728,1718938243135,-244.444046,0.00054876,120]
[330016729,1718938243144,-244.444046,0.00054876,120]
[330016730,1718938243153,-244.444046,0.00054876,120]
[330016731,1718938243162,-608.81,0.00054876,120]
[330016732,1718938243171,-500.0,0.00054876,120]
[330016733,1718938243180,-500.0,0.00054876,120]
[330016734,1718938243189,-500.0,0.00054876,120]
[330016735,1718938243198,-1750.88,0.00054876,120]
[330016736,1718938243208,-1942.91,0.00054876,120]
[330016737,1718938243218,-708.01,0.00054876,120]
[330016738,1718938243227,-1203.0,0.00054876,120]
[330016739,1718938243236,-151.0,0.00054876,120]
[330016740,1718938243245,-151.502714,0.00054876,120]
[330016741,1718938243255,-680.4,0.00054876,120]
[330016742,1718938243265,-1571.92,0.00054876,120]
[330016743,1718938243274,-500.0,0.00054876,120]
[330016744,1718938243283,-500.0,0.00054876,120]
[330016745,1718938243295,-500.0,0.00054876,60]
[330016746,1718938243304,-1005.84,0.00054876,120]
[330016747,1718938243313,-421.982014,0.00054876,120]
[330016748,1718938243322,-421.982014,0.00054876,120]
[330016749,1718938243331,-500.0,0.00054876,120]
[330016750,1718938243340,-421.982014,0.00054876,120]
[330016751,1718938243349,-500.0,0.00054876,120]
[330016752,1718938243360,-421.982014,0.00054876,120]
[330016753,1718938243369,-1697.64,0.00054876,120]
[330016754,1718938243380,-500.0,0.00054876,120]
[330016755,1718938243391,-863.48,0.00054876,120]
[330016756,1718938243400,-201.86955927,0.00054876,120]
[330016757,1718938243411,-500.0,0.00054876,120]
[330016758,1718938243420,-151.0,0.00054876,120]
[330016759,1718938243430,-151.0,0.00054876,120]
[330016760,1718938243440,-500.0,0.00054876,120]
[330016761,1718938243450,-49740.61,0.00054876,120]
[330016762,1718938243461,-151.0,0.00054876,120]
[330016763,1718938243470,-151.677865,0.00054876,120]
[330016764,1718938243479,-500.0,0.00054876,120]
[330016765,1718938243488,-500.0,0.00054876,120]
[330016766,1718938243497,-500.0,0.00054876,120]
[330016767,1718938243506,-542.06,0.00054876,120]
[330016768,1718938243514,-4786.55,0.00054876,21]
[330016769,1718938243524,-500.0,0.00054876,120]
[330016770,1718938243533,-500.0,0.00054876,120]
[330016771,1718938243542,-357.976287,0.00054876,120]
[330016772,1718938243550,-357.976287,0.00054876,120]
[330016773,1718938243559,-561.79,0.00054876,120]
[330016774,1718938243568,-514.21,0.00054876,120]
[330016775,1718938243577,-1263.57,0.00054876,120]
[330016776,1718938243586,-1319.55,0.00054876,120]
[330016777,1718938243595,-357.976287,0.00054876,120]
[330016778,1718938243603,-357.976287,0.00054876,120]
[330016779,1718938243613,-8570.82,0.00054876,120]
[330016781,1718938243622,-703.34,0.00054876,120]
[330016783,1718938243634,-1000.0,0.00054876,14]
[330016785,1718938243643,-609.9,0.00054876,120]
[330016787,1718938243652,-500.0,0.00054876,120]
[330016790,1718938243661,-500.0,0.00054876,120]
[330016792,1718938243671,-610.320761,0.00054876,120]
[330016794,1718938243680,-610.320761,0.00054876,120]
[330016796,1718938243689,-610.320761,0.00054876,120]
[330016798,1718938243698,-587.74,0.00054876,120]
[330016800,1718938243708,-610.320761,0.00054876,120]
[330016803,1718938243718,-610.320761,0.00054876,120]
[330016805,1718938243728,-500.0,0.00054876,120]
[330016806,1718938243737,-44.44247679,0.00054876,120]
[330016808,1718938243970,-1107.75042735,0.00054794,120]
[330016809,1718938243982,-131.54957265,0.00054794,120]
[330016810,1718938243992,-565.87828421,0.00054876,120]
[330016811,1718938244003,-1644.64,0.00054876,120]
[330016812,1718938244013,-21074.77503596,0.00054876,120]